[Event "IX Famalicao Open 2022"]
[Site "Vila Nova de Famalicao"]
[Date "2022.07.29"]
[Round "8.5"]
[White "Umetsubo, Cesar Hidemitsu"]
[Black "Akhvlediani, Irakli"]
[Result "0-1"]
[ECO "E20"]
[WhiteElo "2405"]
[BlackElo "2429"]
[Annotator "TA"]
[PlyCount "68"]
[EventDate "2022.07.25"]
[EventType "tourn"]
[EventCountry "POR"]
[SourceTitle "playchess.com"]
[Source "ChessBase"]
[SourceQuality "1"]
[TimeControl "5400+30"]

{[%evp 10,67,-8,0,-1,-6,-22,-8,-3,0,10,-82,-96,-96,-92,-83,-99,-138,-98,-173,-176,-217,-237,-213,-217,-222,-231,-191,-134,-100,-99,-254,-226,-234,-241,-452,-375,-392,-366,-530,-496,-513,-462,-641,-578,-1102,-1093,-983,-937,-1145,-1104,-1245,-1643,-1441,-1438,-5739,-11572,-29998,-29999,-29999]} 1. d4 {[%emt 0:00:03][%cal Bd2d4,Bd4d5][%mdl 32]} Nf6 {[%emt 0:02:47]} 2. c4 {[%emt 0:00:11]} e6 {[%emt 0:00:35]} 3. Nc3 {[%emt 0:01:02]} Bb4 {[%emt 0:00:29]} 4. f3 {[%emt 0:02:45]} c5 {[%emt 0:00:17]} 5. d5 {[%emt 0:04:10]} O-O {[%emt 0:00:16]} 6. e4 {[%emt 0:02:27]} b5 {[%emt 0:00:37] E20: Nimzo-Indian: 4 g3 and 4 f3.} 7. Bg5 {[%emt 0:16:36]} ({Of course not} 7. cxb5 exd5 8. exd5 Re8+ 9. Kf2 d6 $15) 7... h6 {[%emt 0:02:03]} 8. Bh4 {[%emt 0:00:19]} exd5 {[%emt 0:09:38] The position is equal.} 9. cxd5 {[%emt 0:00:30]} Re8 {[%emt 0:00:31][%cal Of6e4] [#] Threatens to win with ...Nxe4!} 10. Bxf6 $146 {[%emt 0:17:22]} (10. Be2 $11 {remains equal.}) ({Predecessor:} 10. Nge2 d6 11. Bf2 Nbd7 12. g3 Ba5 13. Bg2 b4 14. Na4 Ba6 15. Be3 b3+ 16. Nac3 bxa2 {0-1 (34) Juksta,K (2366)-Meskovs,N (2582) Panevezys 2020}) 10... Qxf6 $17 {[%emt 0:00:10]} 11. Bxb5 {[%emt 0:00:05]} Bxc3+ {[%emt 0:01:51]} 12. bxc3 {[%emt 0:00:07]} Qxc3+ {[%emt 0:00:02]} 13. Kf1 {[%emt 0:04:48]} Ba6 {[%emt 0:01:56]} 14. Bxa6 {[%emt 0:02:47]} (14. a4 $17 {was called for.}) 14... Nxa6 $19 {[%emt 0:00:10]} 15. Ne2 {[%emt 0:02:13] [#]} Qf6 {[%emt 0:00:05]} 16. Kg1 {[%emt 0:21:36]} Rab8 {[%emt 0:00:34]} 17. h3 {[%emt 0:00:08]} Rb2 {[%emt 0:00:41][%cal Ob2e2] Strongly threatening ...Rxe2!} 18. Kh2 {[%emt 0:00:12]} Qe5+ {[%emt 0:05:41]} (18... Nb4 $19 {And now ...Qe5+ would win.} 19. Rg1 Qd6+ 20. Ng3 Nc2) 19. Ng3 $17 {[%emt 0:00:23]} g5 {[%emt 0:04:07] 0x0.0002df0172e1dp-1022s more active pieces.} 20. Rb1 $2 {[%emt 0:07:51] [#] This move loses the game for White.} (20. Rg1 $17) 20... Reb8 $1 $19 {[%emt 0:10:09][%cal Be8b8,Bb8b2,Bb2f2][%mdl 32]} ({Worse is} 20... Rxa2 21. Ra1 Rb2 22. Rxa6 $15) 21. Rxb2 {[%emt 0:00:15]} Rxb2 {[%emt 0:00:02]} 22. Qa1 $2 {[%emt 0:08:32]} (22. Rg1 {is the only way for White.} Rxa2 23. f4 gxf4 24. Qg4+ Kh7 25. Nf5) 22... d6 {[%emt 0:01:23]} 23. Rf1 {[%emt 0:02:04]} Nb4 {[%emt 0:01:39]} 24. Kh1 {[%emt 0:01:59]} (24. a4 {was worth a try.} c4 25. Qc1) 24... Nd3 {[%emt 0:05:34]} 25. Nf5 {[%emt 0:00:21]} Nf2+ {[%emt 0:00:14]} 26. Rxf2 {[%emt 0:02:33]} Rxf2 {[%emt 0:00:02][%mdl 4096] Endgame KQR-KQN} 27. Qb1 {[%emt 0:01:45]} Rb2 {[%emt 0:00:12][%cal Rb2b1]} 28. Qa1 {[%emt 0:00:25]} Qc3 {[%emt 0:00:27] aiming for ...Qc2.} 29. Qf1 {[%emt 0:00:55]} Rxa2 {[%emt 0:00:22] White must now prevent ...Ra1.} 30. Qb5 {[%emt 0:00:16]} Ra1+ {[%emt 0:00:04]} 31. Kh2 {[%emt 0:00:07]} Qe5+ {[%emt 0:00:03]} 32. g3 {[%emt 0:00:54]} Ra2+ {[%emt 0:00:04]} 33. Kh1 {[%emt 0:00:03]} Qa1+ {[%emt 0:00:03]} 34. Qb1 {[%emt 0:00:05]} Qxb1# {[%emt 0:00:03] Weighted Error Value: White=1.10/Black=0.09 (flawless)} 0-1

[Event "IX Famalicao Open 2022"]
[Site "Vila Nova de Famalicao"]
[Date "2022.07.29"]
[Round "8.6"]
[White "Akshit Kumar J"]
[Black "Spraggett, Kevin"]
[Result "0-1"]
[ECO "B84"]
[WhiteElo "2103"]
[BlackElo "2487"]
[Annotator "TA"]
[PlyCount "44"]
[EventDate "2022.07.25"]
[EventType "tourn"]
[EventCountry "POR"]
[SourceTitle "playchess.com"]
[Source "ChessBase"]
[SourceQuality "1"]
[TimeControl "5400+30"]

{[%evp 22,44,-21,-11,-12,-40,-39,-54,-42,-45,-22,-9,-11,-62,-63,-78,-79,-147,-134,-568,-555,-5419,-5110,-29993,-29994]} 1. e4 c5 2. Nf3 d6 3. d4 cxd4 4. Nxd4 Nf6 5. Nc3 a6 6. Be2 e6 7. Be3 Qc7 8. f4 Be7 9. O-O O-O 10. Kh1 b5 11. a3 Bb7 12. Bf3 Nbd7 {B85: Sicilian Scheveningen: 6 Be2 a6, lines with early Be3.} 13. Nb3 Rac8 14. g4 d5 {[#] Black is slightly better.} 15. exd5 $146 ({Predecessor:} 15. e5 Ne4 16. Bd4 Nb6 17. Na5 Ba8 18. Qe1 Na4 19. Nxa4 bxa4 20. Rc1 Bc5 21. Bxc5 Qxc5 {0-1 (27) Lang,G-Barczay,L (2405) Sarvar 1998}) 15... Nxd5 16. Nxd5 exd5 17. g5 ({Much weaker is} 17. Bxd5 {[#]} Ne5 $1 18. Bg2 (18. fxe5 $2 Rfd8 $19) 18... Bxg2+ 19. Kxg2 Qxc2+ 20. Qxc2 Rxc2+ 21. Kg3 Rxb2 $17) (17. c3 $11) 17... Rfe8 $1 $15 {[%cal Oe7g5,Bf8e8,Be8e3,Be3e1][%mdl 32]} ({But not} 17... Qxc2 18. Bxd5 Qc7 19. Rc1 $11) 18. Bxd5 Bxa3 19. Rxa3 (19. Bxb7 $142 Qxb7+ 20. Qf3 Qxf3+ 21. Rxf3 Bxb2 22. Rxa6) 19... Rxe3 $17 20. Qd2 $2 {[%mdl 8192]} (20. Bxb7 $17 Qxb7+ 21. Kg1) 20... Qc4 $19 {[%cal Rc4f1]} 21. Rd1 Bxd5+ 22. Qxd5 {[#]} Re1+ $3 {[%mdl 512] Weighted Error Value: White=1.66/Black=0.03 (flawless)} 0-1

[Event "IX Famalicao Open 2022"]
[Site "Vila Nova de Famalicao"]
[Date "2022.07.29"]
[Round "8.7"]
[White "Rodriguez Lopez, Rafael"]
[Black "Campora, Daniel H."]
[Result "1-0"]
[ECO "B04"]
[WhiteElo "2172"]
[BlackElo "2397"]
[Annotator "TA"]
[PlyCount "111"]
[EventDate "2022.07.25"]
[EventType "tourn"]
[EventCountry "POR"]
[SourceTitle "playchess.com"]
[Source "ChessBase"]
[SourceQuality "1"]
[TimeControl "5400+30"]

{[%evp 13,111,58,69,70,81,71,60,73,64,71,81,64,72,40,38,43,50,34,41,36,41,42,40,51,41,49,43,20,41,36,86,96,94,93,116,106,281,107,368,383,347,183,179,177,177,179,295,295,295,295,295,295,288,288,676,674,1142,584,955,653,677,256,237,216,368,251,241,242,315,298,279,233,314,310,420,466,427,403,372,287,379,371,361,335,360,295,347,213,234,222,406,402,534,522,29965,29966,6307,6295,1420,1027]} 1. e4 {[%cal Be2e4,Be4e5][%mdl 32]} Nf6 {[%emt 0:02:37]} 2. e5 {[%emt 0:00:07]} Nd5 {[%emt 0:00:04]} 3. d4 {[%emt 0:00:05]} d6 {[%emt 0:00:18]} 4. Nf3 {[%emt 0:00:05]} Nc6 {[%emt 0:03:10]} 5. c4 {[%emt 0:00:21]} Nb6 {[%emt 0:00:08]} 6. e6 {[%emt 0:00:18]} fxe6 {[%emt 0:02:10]} 7. Nc3 {[%emt 0:00:36]} g6 {[%emt 0:04:49] The main line 7...g6 scores better than 7...e5.} 8. h4 {[%emt 0:00:24] White is more active. B04: Alekhine's Defence: 4 Nf3.} Bg7 {[%emt 0:06:01]} 9. Be3 $1 {[%emt 0:00:06]} e5 {[%emt 0:11:06]} 10. d5 {[%emt 0:00:14] White is slightly better.} Nd4 {[%emt 0:00:37]} 11. Nxd4 {[%emt 0:00:10]} exd4 {[%emt 0:00:06]} 12. Bxd4 {[%emt 0:00:04]} O-O {[%emt 0:02:28]} 13. Bxg7 {[%emt 0:01:59]} Kxg7 {[%emt 0:00:56]} 14. h5 {[%emt 0:03:23]} e5 {[%emt 0:00:39]} 15. hxg6 {[%emt 0:09:03]} hxg6 {[%emt 0:00:14] [#]} 16. Qd2 $146 {[%emt 0:00:06] White threatens Qh6+ and mate.} ({Predecessor:} 16. Qe2 Bd7 17. Qe3 Rh8 18. Rxh8 Qxh8 19. c5 Na4 20. cxd6 cxd6 21. Ne4 Qh4 22. g3 {1-0 (44) Gutsche,D (2507)-Wigbout,M (2309) ICCF email 2003}) 16... Rh8 {[%emt 0:00:29] Prevents Qh6+.} 17. Rxh8 {[%emt 0:00:08]} Qxh8 {[%emt 0:00:04]} 18. Qg5 {[%emt 0:17:14]} Bd7 {[%emt 0:18:29]} 19. c5 {[%emt 0:10:18]} dxc5 {[%emt 0:00:41]} 20. Qxe5+ {[%emt 0:00:25]} Kf7 {[%emt 0:03:35]} 21. Qf4+ {[%emt 0:01:43]} (21. Qxc7 $2 Re8+ 22. Ne2 Qxb2 23. Qf4+ Bf5 $19) 21... Kg8 {[%emt 0:05:27]} ({Black should try} 21... Kg7 $14) 22. O-O-O $16 {[%emt 0:00:35] White leaves nothing to chance now.} Rf8 {[%emt 0:01:23]} 23. Qe3 {[%emt 0:03:23]} Qh4 {[%emt 0:06:08]} 24. g3 {[%emt 0:01:30]} Qb4 {[%emt 0:01:21] [#]} (24... Qf6 $16 {is a better defense.}) 25. Bd3 $2 {[%emt 0:02:09]} (25. d6 $1 $18 {[%cal Rd6c7]}) 25... Nc4 $2 {[%emt 0:03:06][%mdl 8192]} (25... Qd4 $16) 26. Bxc4 $18 {[%emt 0:02:19]} Qxc4 {[%emt 0:00:29]} 27. Qe7 {[%emt 0:00:27]} (27. Qh6 $142 Rxf2 28. Qxg6+ Kf8 29. Qh6+ Kg8 30. d6) 27... Bg4 {[%emt 0:03:12]} (27... Rf7 $2 28. Qd8+ Kg7 29. Rh1 $18) 28. Rh1 $40 {[%emt 0:01:05][%csl Gh1][%cal Re7h7][%mdl 128] White goes for the king.} Bh5 {[%emt 0:00:07]} 29. Qe6+ {[%emt 0:02:42]} ({Weaker is} 29. Qxc7 b5 $11) 29... Kg7 {[%emt 0:00:47]} (29... Rf7 $142 30. Rg1 Kf8) 30. Qe5+ {[%emt 0:01:47]} Kg8 {[%emt 0:00:05] [#]} 31. f4 {[%emt 0:10:06]} (31. Qxc7 b5 $11) 31... Qd4 {[%emt 0:06:32]} 32. Qe6+ {[%emt 0:09:21]} (32. Qxc7 Qe3+ 33. Kb1 Qxg3 $16) 32... Kg7 {[%emt 0:00:11]} 33. Ne4 {[%emt 0:00:43] Threatens to win with Ng5.} Qe3+ $2 {[%emt 0:07:30]} (33... Rf5 34. Ng5 Qc4+ 35. Kb1 Qd3+ 36. Ka1 Qxd5 37. Qe7+ Rf7 38. Qxf7+ (38. Ne6+ Kh6 $16) 38... Qxf7 39. Nxf7 Kxf7) 34. Kb1 {[%emt 0:00:26]} Qf3 {[%emt 0:01:38]} 35. Qe5+ {[%emt 0:00:59]} Kh6 {[%emt 0:02:24]} 36. Re1 {[%emt 0:01:46] Strongly threatening Qe7.} Qg4 {[%emt 0:00:16]} 37. Nxc5 $2 {[%emt 0:03:42]} (37. Qe7 Qf5 38. Ka1) 37... Qf5+ {[%emt 0:00:30]} 38. Kc1 {[%emt 0:01:00][%cal Bb1c1,Bc1d2,Bd2e3,Be3f3,Bf3g3,Bg3h4,Bh4g5][%mdl 32]} Bf3 $2 {[%emt 0:02:15]} (38... Qxe5 39. Rxe5 (39. fxe5 Rd8 $16) 39... Rf7 40. Nxb7 Bf3) 39. Ne6 {[%emt 0:01:01]} Qxe5 {[%emt 0:03:22]} 40. Rxe5 {[%emt 0:00:12][%mdl 4096] Endgame KRB-KRN} (40. fxe5 Rc8 $14) 40... Rc8 {[%emt 0:01:45]} 41. Kd2 {[%emt 0:00:47]} Bg4 {[%emt 0:01:08]} 42. Ke3 {[%emt 0:00:25] Black must now prevent Ng5.} Bf5 {[%emt 0:00:43]} 43. Kf3 {[%emt 0:00:34] aiming for g4.} Kh7 {[%emt 0:00:10]} 44. g4 {[%emt 0:00:48]} Bb1 {[%emt 0:00:06]} 45. a3 {[%emt 0:00:11]} Kg8 {[%emt 0:00:13]} 46. Kg3 {[%emt 0:00:34]} Kf7 {[%emt 0:00:20]} 47. b4 {[%emt 0:01:24]} Ba2 {[%emt 0:00:42]} 48. Ng5+ {[%emt 0:01:35]} Kf8 {[%emt 0:00:35]} 49. Kh4 {[%emt 0:00:20]} Kg8 {[%emt 0:00:31]} 50. Ne6 {[%emt 0:00:19]} Kf7 {[%emt 0:00:06]} 51. Kg5 {[%emt 0:00:08]} c6 $2 {[%emt 0:01:02]} (51... b6 {was called for.} 52. f5 gxf5 53. Kxf5 (53. Rxf5+ Ke7 $16) 53... Bc4) 52. Nc5 {[%emt 0:00:38]} Bxd5 {[%emt 0:01:07]} 53. Nxb7 {[%emt 0:00:10] White wants to mate with Nd6+.} Rg8 {[%emt 0:02:06]} 54. Nd6+ {[%emt 0:00:22]} Kg7 {[%emt 0:00:04]} 55. Re7+ {[%emt 0:00:11]} Kh8 {[%emt 0:00:03]} 56. Rxa7 {[%emt 0:00:23] Weighted Error Value: White=0.40/Black=0.64} 1-0

[Event "IX Famalicao Open 2022"]
[Site "Vila Nova de Famalicao"]
[Date "2022.07.29"]
[Round "8.8"]
[White "Dias, Paulo"]
[Black "Monteiro, Paulo Alexandre G"]
[Result "0-1"]
[ECO "E63"]
[WhiteElo "2348"]
[BlackElo "1980"]
[Annotator "TA"]
[PlyCount "100"]
[EventDate "2022.07.25"]
[EventType "tourn"]
[EventCountry "POR"]
[SourceTitle "playchess.com"]
[Source "ChessBase"]
[SourceQuality "1"]
[TimeControl "5400+30"]

{[%evp 18,100,54,52,51,49,41,25,29,20,31,27,41,33,63,39,53,48,93,78,81,52,57,0,25,-10,38,0,-18,-48,0,0,0,-11,0,0,0,0,0,0,0,-33,-32,-39,-40,-38,-33,-37,-6,-34,-36,-37,-50,-16,-21,-103,-106,-120,-93,-86,-87,-119,-103,-248,-134,-156,-133,-134,0,-170,0,-231,-227,-203,308,-215,-200,-29985,-29986,-29990,-29991,-29995,-29996,-29996,-29997]} 1. d4 Nf6 2. c4 g6 3. Nf3 Bg7 4. g3 O-O 5. Bg2 d6 6. O-O Nc6 7. Nc3 a6 8. e4 Bg4 9. Be3 Nd7 10. Qd2 Bxf3 {E63: King's Indian: Fianchetto: Panno Variation with 7...a6.} 11. Bxf3 e5 12. d5 Nd4 {White has an edge.} 13. Bg2 c5 14. dxc6 $1 bxc6 15. f4 {[%cal Bf2f4,Bf4f5][%mdl 32]} Rb8 16. f5 Qa5 {[#]} 17. Kh1 $146 ({Predecessor:} 17. Rac1 Qc5 18. Rf2 Qxc4 19. Nd5 Qxa2 20. Ne7+ Kh8 21. Nxc6 Rbc8 22. Nxd4 Rxc1+ 23. Qxc1 exd4 {½-½ (36) Petzold,G (2233)-Juhnke,J (2273) Germany 2012}) 17... Rb7 18. g4 {[%cal Bg3g4,Bg4g5][%mdl 32]} Bf6 19. g5 Bd8 20. f6 Bb6 21. Bh3 Re8 (21... Nc5 $11 {is more appropriate.}) 22. Rae1 (22. Qg2 $14 Rd8 23. Bd2) 22... Bc5 $11 23. Qf2 Reb8 (23... h5 $15 {might be stronger.} 24. gxh6 Kh7) 24. Qh4 {Threatening mate with Qh6.} Qd8 (24... Rxb2 25. Qh6 $1) (24... h5 $6 25. gxh6 Kh7 26. Bxd7 Rxd7 27. Qg4 $17) 25. Bc1 Nb6 26. b3 a5 {[%cal Oa5a4]} 27. Bg4 Kh8 28. Re3 a4 29. Rh3 {[%csl Gh3][%cal Rh4h7]} ({Of course not} 29. Nxa4 Nxa4 30. bxa4 Rb4 $15) 29... Qg8 30. Ne2 axb3 31. axb3 Nxe2 32. Bxe2 Nd7 33. Bd1 Ra8 34. Bg4 Ra1 35. Rd1 Bd4 {White must now prevent ...Nc5.} 36. Be3 (36. Qe1 $11) 36... Rxd1+ $17 37. Bxd1 Ra7 $1 38. Bg4 Nc5 $1 {[%csl LRb3,LRe4]} 39. Bxd4 exd4 40. Be2 (40. b4 $17 Nxe4 41. Bd7) 40... Ra1+ (40... Ra2 $19 41. Bf1 h5) 41. Kg2 Ra2 42. Kf1 Ra1+ (42... Rb2 $17 43. Ke1 Nd7) 43. Kf2 $2 (43. Kg2 $1 $11 {and White is okay.}) 43... Ra2 $2 ({Black should play} 43... Rb1 $1 $19 44. Kg2 Rb2) 44. b4 $2 (44. Kf1 $11 {and White stays safe.}) 44... d3 $1 $19 45. bxc5 dxe2 {[%mdl 8192] [#]} (45... Rxe2+ $19 46. Kf1 Ra2 47. Rxd3 Qb8) 46. cxd6 $4 {[%mdl 8192] [#] KQR-KQR} (46. Qh6 $1 $18 {was the only winning move.} e1=R+ 47. Kxe1 Ra1+ 48. Kf2 Ra2+ 49. Kf1 Ra1+ 50. Ke2 Ra2+ 51. Kd1 Ra1+ 52. Ke2 Ra2+ 53. Ke1 Ra1+ 54. Ke2) 46... h5 $1 47. Rd3 $2 (47. gxh6 {is a self mate.} e1=Q+ 48. Kf3 Qf1+ 49. Ke3 Qb8 50. c5 Ra3+ 51. Kd4 Qb4+ 52. Ke5 Qxc5#) (47. Re3 $19 e1=R+ 48. Kxe1) 47... Qb8 {Black mates.} 48. Kf3 Qb1 49. Re3 Qf1+ 50. Qf2 e1=Q {[%mdl 64] Pin.  Weighted Error Value: White=0.54/Black=0.28 (precise)} 0-1

[Event "IX Famalicao Open 2022"]
[Site "Vila Nova de Famalicao"]
[Date "2022.07.29"]
[Round "8.9"]
[White "Almeida, Joao Pedro Dias"]
[Black "Borges, Guilherme Deola"]
[Result "0-1"]
[ECO "A43"]
[WhiteElo "1695"]
[BlackElo "2185"]
[Annotator "TA"]
[PlyCount "59"]
[EventDate "2022.07.25"]
[EventType "tourn"]
[EventCountry "POR"]
[SourceTitle "playchess.com"]
[Source "ChessBase"]
[SourceQuality "1"]
[TimeControl "5400+30"]

{[%evp 14,59,83,56,66,45,53,50,114,34,74,96,77,29,28,-28,0,-68,-77,-290,-243,-216,-218,-289,-243,-385,-368,-711,-164,-186,-148,-142,-143,-165,-159,-391,-381,-422,-429,-551,-562,-638,-630,-1241,-1230,-1596,-953,-2369]} 1. d4 {[%emt 0:00:03]} Nf6 {[%emt 0:00:14]} 2. c4 {[%emt 0:00:04]} c5 {[%emt 0:00:22]} 3. d5 {[%emt 0:00:03]} d6 4. Nc3 {[%emt 0:01:01]} g6 {[%emt 0:01:26]} 5. e4 {[%emt 0:01:26]} Bg7 {[%emt 0:00:16]} 6. h3 {[%emt 0:00:15]} O-O {[%emt 0:00:50]} 7. Nf3 {[%emt 0:00:24]} e5 8. Bd3 {[%emt 0:05:02]} Nh5 {[%emt 0:06:05] E90: King's Indian: Classical: Early deviations and 6 h3.} 9. Bg5 f6 {[%emt 0:02:42]} 10. Be3 {[%emt 0:10:01]} Nd7 {[%emt 0:01:19] [#]} (10... Nf4 $14) 11. Nb5 $146 {[%emt 0:11:38]} (11. g3 $1 $16) ({Predecessor:} 11. g3 a6 12. Nh4 Bh8 13. Nf5 gxf5 14. Qxh5 fxe4 15. Nxe4 f5 16. Nxd6 e4 17. Be2 Bxb2 {0-1 (49) Goormachtigh,J (2300)-Vandevoort,P (2250) Ghent 1992}) 11... Qb6 {[%emt 0:07:32]} 12. a4 {[%emt 0:01:45]} Nb8 {[%emt 0:00:30][%cal Bd7b8,Bb8a6,Ba6b4,Bb4d3][%mdl 32]} 13. Nh2 {[%emt 0:19:46]} (13. Qd2 $16) 13... Na6 $11 14. Ng4 {[%emt 0:04:09]} ({Better is} 14. Bb1) 14... Nb4 {[%emt 0:08:49]} (14... Nf4 $5 {[%cal Rf4g2]} 15. O-O (15. Bxf4 exf4 16. O-O Nb4 $15) 15... Nb4 $11) 15. Nh6+ {[%emt 0:02:25]} (15. Bb1 $11) 15... Kh8 $15 {[%emt 0:00:58] [#] Hoping for ...a6.} 16. Nf5 $2 {[%emt 0:04:47]} Nxd3+ {[%emt 0:09:59]} 17. Qxd3 {[%emt 0:00:13]} gxf5 {[%emt 0:00:07]} 18. exf5 {[%emt 0:00:22]} Nf4 {[%emt 0:00:28]} 19. Qe4 {[%emt 0:00:28]} (19. Bxf4 {was forced.} exf4 20. O-O) 19... a6 $19 {[%emt 0:11:48]} 20. a5 $2 {[%emt 0:00:43]} (20. Nc3) 20... Qd8 $2 {[%emt 0:00:07]} (20... axb5 21. axb6 Rxa1+ 22. Kd2 Rxh1) 21. Nc3 {[%emt 0:00:04]} Nxg2+ {[%emt 0:04:04]} 22. Qxg2 {[%emt 0:00:36]} Bxf5 {[%emt 0:00:11][%cal Ob7b5]} 23. h4 {[%emt 0:06:51]} Bd3 $36 {[%emt 0:03:01][%mdl 2048] Black is on the roll.} 24. b3 $2 {[%emt 0:04:22] This move loses the game for White.} (24. Rg1 $17 Rf7 25. Qh3) 24... f5 {[%emt 0:04:25]} 25. Bg5 {[%emt 0:00:34]} Qc7 {[%emt 0:01:11] Black is clearly winning.} 26. Ra2 {[%emt 0:04:39]} b5 {[%emt 0:02:00]} 27. cxb5 {[%emt 0:02:22]} axb5 {[%emt 0:00:11] And now ...e4 would win.} 28. Kd2 {[%emt 0:01:50]} e4 {[%emt 0:01:15]} 29. a6 {[%emt 0:03:16]} Qf7 {[%emt 0:03:15] aiming for ...Bxc3+.} 30. Rg1 {[%emt 0:01:06] Weighted Error Value: White=1.07/Black=0.52} 0-1

[Event "IX Famalicao Open 2022"]
[Site "Vila Nova de Famalicao"]
[Date "2022.07.29"]
[Round "8.10"]
[White "Paulino, Jose"]
[Black "Goncalves, Samuel Jesus P"]
[Result "0-1"]
[ECO "D10"]
[WhiteElo "2032"]
[BlackElo "1957"]
[Annotator "TA"]
[PlyCount "72"]
[EventDate "2022.07.25"]
[EventType "tourn"]
[EventCountry "POR"]
[SourceTitle "playchess.com"]
[Source "ChessBase"]
[SourceQuality "1"]
[TimeControl "5400+30"]

{[%evp 12,72,22,21,29,26,35,34,32,33,35,27,29,34,46,32,52,0,3,-46,-50,-41,-51,-44,-49,-58,-52,-59,-39,-38,-8,-102,-91,-106,-96,-90,-110,-153,-91,-149,-100,-148,-153,-141,-112,-190,-185,-197,-196,-192,-162,-160,-147,-136,-43,-170,-153,-216,-207,-203,-192,-189,-189]} 1. d4 {[%emt 0:00:05]} d5 {[%emt 0:00:11]} 2. c4 {[%emt 0:00:04]} c6 {[%emt 0:00:07]} 3. Nf3 {[%emt 0:00:07]} Nf6 {[%emt 0:00:06]} 4. cxd5 {[%emt 0:00:06]} cxd5 {[%emt 0:04:09]} 5. Nc3 {[%emt 0:00:30]} Nc6 {[%emt 0:00:25]} 6. Bf4 {[%emt 0:00:18]} Ne4 {[%emt 0:00:13]} 7. e3 {[%emt 0:00:17]} e6 {[%emt 0:00:08] D13: Slav Defence: Exchange variation without ...Bf5.} 8. Nxe4 {[%emt 0:03:52]} dxe4 {[%emt 0:00:10]} 9. Nd2 {[%emt 0:00:02]} Bb4 {[%emt 0:00:11] White is slightly better.} 10. a3 {[%emt 0:00:25]} Bxd2+ {[%emt 0:00:08]} 11. Qxd2 {[%emt 0:00:02] [#]} e5 $146 {[%emt 0:00:14]} ({Predecessor:} 11... O-O 12. Bc4 b6 13. O-O Bb7 {½-½ (13) Miroshnichenko,E (2621)-Ponomariov,R (2726) Kiev 2012}) 12. dxe5 {[%emt 0:00:36]} Qxd2+ {[%emt 0:00:08]} 13. Kxd2 {[%emt 0:00:03]} O-O {[%emt 0:01:14]} 14. Bb5 {[%emt 0:00:43]} (14. Bc4 $14) 14... Na5 $11 {[%emt 0:05:03]} 15. Ke1 {[%emt 0:03:13]} (15. Ke2 $11 {feels stronger.}) 15... Nb3 $15 {[%emt 0:01:53]} 16. Rd1 {[%emt 0:02:28]} Bg4 {[%emt 0:00:19]} 17. Be2 {[%emt 0:00:40]} Bxe2 {[%emt 0:01:16]} 18. Kxe2 {[%emt 0:00:17]} Rac8 {[%emt 0:00:06]} 19. Rhe1 {[%emt 0:02:37]} Rc2+ {[%emt 0:04:24]} 20. Kf1 {[%emt 0:00:08]} Rxb2 {[%emt 0:01:51]} 21. Rd7 {[%emt 0:01:00]} (21. Re2 $11 {remains equal.} Rxe2 22. Kxe2) 21... Nc5 $17 {[%emt 0:00:26]} 22. Rdd1 {[%emt 0:02:44]} Nd3 {[%emt 0:07:12]} 23. Re2 {[%emt 0:00:16]} Rb3 {[%emt 0:00:33]} 24. Ra2 {[%emt 0:02:27] [#]} Rc8 {[%emt 0:05:47]} (24... b5 $142 $1 25. Bg3 Re8) 25. Bg3 {[%emt 0:05:55] [#]} ({Better is} 25. a4) 25... h5 {[%emt 0:01:53] Black is much more active.} (25... b5 $142 $1 26. f3 h6 27. fxe4 Rc4) 26. f3 {[%emt 0:03:09]} (26. a4 $142) 26... h4 {[%emt 0:02:34]} 27. Bxh4 {[%emt 0:01:38]} Nxe5 {[%emt 0:00:13]} 28. Bg3 {[%emt 0:00:35]} (28. fxe4 $17 {was worth a try.} Ng4 29. Kg1) 28... Nc4 $36 {[%emt 0:00:27][%mdl 2048] Black has strong initiative.} 29. Bf2 {[%emt 0:04:03]} exf3 {[%emt 0:04:49]} ({Not} 29... Nxe3+ 30. Bxe3 Rxe3 31. fxe4 $17) 30. gxf3 {[%emt 0:02:11]} Nxe3+ {[%emt 0:01:16]} 31. Bxe3 {[%emt 0:00:03]} Rxe3 {[%emt 0:00:08] KRR-KRR} 32. Kg2 {[%emt 0:04:26]} Rc6 {[%emt 0:00:33]} (32... Rb3 $17 {...b5 is the strong threat.} 33. a4 Rcc3) 33. Rd4 {[%emt 0:01:46] Now White is beyond hope.} (33. Rd8+ $1 $15 Kh7 34. Rd7) 33... Rg6+ {[%emt 0:06:24] Black is clearly better.} 34. Rg4 {[%emt 0:15:29]} (34. Kf2 $17 {is a better defense.} Rc3 35. Rd7) 34... Rxg4+ {[%emt 0:00:06]} 35. fxg4 {[%emt 0:00:08]} b6 {[%emt 0:00:04]} 36. a4 {[%emt 0:00:19]} Re5 {[%emt 0:00:12] Weighted Error Value: White=0.31/Black=0.12 (very precise)} 0-1